{"text_format":"1","workbook":"xlsx","n_sheets":4,"sheets":["Cover","Parameters","PUSCH 1T2R","PUCCH Format 2 1T2R"],"not_rendered":{"charts":0,"images":0,"macros":1,"external_links":0,"defined_names":3,"comments":0,"pivot_tables":0},"unopened":[],"bounds":{"document_bytes":16777216,"sheet_cells":100000,"rows_first":2000,"rows_last":500,"rows_between":2000,"halvings":0,"cell_chars":16384,"cell_head_chars":4096},"cells_cut":0,"cells_raw":0,"read":"whole","date_system":"1900"}

{"sheet":"Cover","index":0,"n_rows":8,"n_cols":10,"rows_kept":8,"cut":false,"hidden":false,"merged":[]}
[]
[null,"3GPP TSG-RAN WG4 Meeting #109",null,null,null,null,null,null,null,"R4-231xxxx"]
[null,"Chicago, USA, November 13-17 , 2023"]
[]
[null,"Source: Nokia, Nokia Shanghai Bell"]
[null,"Title: Simulation Summary for Less Than 5 MHz BS Demod"]
[null,"Agenda: 8.14.6.2"]
[null,"Document for: Information"]

{"sheet":"Parameters","index":1,"n_rows":12,"n_cols":5,"rows_kept":12,"cut":false,"hidden":false,"merged":[[1,2,1,4],[7,2,7,4],[6,2,6,4]]}
[]
[null,null,"Parameters for deriving performance requirements"]
[null,null,"Ideal Span Threshold",2,"dB"]
[null,null,"Impairment Span Threshold",4,"dB"]
[]
[]
[null,"Notes","1. Call function DerivingPerfReq()"]
[null,null,"2. If the ruls does not apply, or fails, -100dB or less will be returned"]
[null,null,null,-100,"Not enough input"]
[null,null,null,-101,"Input should be pairs"]
[null,null,null,-102,"Too large span for impairment"]
[null,null,null,-103,"After removal iteration, not enough input"]

{"sheet":"PUSCH 1T2R","index":2,"n_rows":50,"n_cols":26,"rows_kept":50,"cut":false,"hidden":false,"merged":[[26,4,28,4],[29,4,34,4],[35,4,37,4],[38,4,40,4],[26,5,28,5],[29,5,31,5],[32,5,34,5],[35,5,37,5],[38,5,40,5],[2,0,25,0],[26,0,49,0],[23,4,25,4],[23,5,25,5],[2,4,4,4],[2,5,4,5],[5,4,10,4],[5,5,7,5],[8,5,10,5],[14,4,16,4],[14,5,16,5],[17,5,19,5],[20,5,22,5],[17,4,22,4],[11,5,13,5],[11,4,13,4],[2,2,13,2],[14,2,25,2],[26,2,37,2],[38,2,49,2],[2,1,49,1],[0,10,0,11],[0,0,1,5],[0,6,1,6],[0,7,1,7],[0,8,0,9],[0,22,0,23],[0,24,0,25],[0,12,0,13],[0,14,0,15],[0,16,0,17],[0,18,0,19],[0,20,0,21],[41,4,46,4],[41,5,43,5],[44,5,46,5],[47,4,49,4],[47,5,49,5]]}
["  FR1 PUSCH 1T2R",null,null,null,null,null,"38.104 req","38.141 req","Company A",null,"Company B",null,"Company C",null,"Company D",null,"Company E",null,"Company F",null,"Company G",null,"SPAN",null,"AVERAGE"]
[null,null,null,null,null,null,null,null,"Ideal","Impairment","Ideal","Impairment","Ideal","Impairment","Ideal","Impairment","Ideal","Impairment","Ideal","Impairment","Ideal","Impairment","Ideal","Impairment","Ideal","Impairment"]
["CP-OFDM","Mapping type B","15kHz, 12 PRB","MCS 2","TDLA 30-10","DMRS 1+0",{"$f":"DerivingPerfReq(I3:Z3)","v":-100},{"$f":"IF(G3>-100,G3+0.6,G3)","v":-100},null,null,null,null,null,null,null,null,null,null,null,null,null,null,{"$f":"MAX(I3,K3,M3,O3,U3,Q3,S3)-MIN(I3,K3,M3,O3,U3,Q3,S3)","v":0},{"$f":"MAX(J3,L3,N3,P3,V3,R3,T3)-MIN(J3,L3,N3,P3,V3,R3,T3)","v":0},{"$f":"AVERAGE(I3,K3,M3,O3,U3,Q3,S3)","v":{"$error":"#DIV/0!"}},{"$f":"AVERAGE(J3,L3,N3,P3,V3,R3,T3)","v":{"$error":"#DIV/0!"}}]
[null,null,null,"MCS 16",null,null,{"$f":"DerivingPerfReq(I4:Z4)","v":-100},{"$f":"IF(G4>-100,G4+0.6,G4)","v":-100},null,null,null,null,null,null,null,null,null,null,null,null,null,null,{"$f":"MAX(I4,K4,M4,O4,U4,Q4,S4)-MIN(I4,K4,M4,O4,U4,Q4,S4)","v":0},{"$f":"MAX(J4,L4,N4,P4,V4,R4,T4)-MIN(J4,L4,N4,P4,V4,R4,T4)","v":0},{"$f":"AVERAGE(I4,K4,M4,O4,U4,Q4,S4)","v":{"$error":"#DIV/0!"}},{"$f":"AVERAGE(J4,L4,N4,P4,V4,R4,T4)","v":{"$error":"#DIV/0!"}}]
[null,null,null,"MCS 20",null,null,-100,-100,null,null,null,null,null,null,null,null,null,null,null,null,null,null,0,0,{"$error":"#DIV/0!"},{"$error":"#DIV/0!"}]
[null,null,null,"MCS 2","TDLB 100-400","DMRS 1+0",-100,-100,null,null,null,null,null,null,null,null,null,null,null,null,null,null,0,0,{"$error":"#DIV/0!"},{"$error":"#DIV/0!"}]
[null,null,null,"MCS 16",null,null,-100,-100,null,null,null,null,null,null,null,null,null,null,null,null,null,null,0,0,{"$error":"#DIV/0!"},{"$error":"#DIV/0!"}]
[null,null,null,"MCS 20",null,null,-100,-100,null,null,null,null,null,null,null,null,null,null,null,null,null,null,0,0,{"$error":"#DIV/0!"},{"$error":"#DIV/0!"}]
[null,null,null,"MCS 2",null,"DMRS 1+1",-100,-100,null,null,null,null,null,null,null,null,null,null,null,null,null,null,{"$f":"MAX(I9,K9,M9,O9,U9,Q9,S9)-MIN(I9,K9,M9,O9,U9,Q9,S9)","v":0},0,{"$f":"AVERAGE(I9,K9,M9,O9,U9,Q9,S9)","v":{"$error":"#DIV/0!"}},{"$error":"#DIV/0!"}]
[null,null,null,"MCS 16",null,null,-100,-100,null,null,null,null,null,null,null,null,null,null,null,null,null,null,0,0,{"$error":"#DIV/0!"},{"$error":"#DIV/0!"}]
[null,null,null,"MCS 20",null,null,-100,-100,null,null,null,null,null,null,null,null,null,null,null,null,null,null,0,0,{"$error":"#DIV/0!"},{"$error":"#DIV/0!"}]
[null,null,null,"MCS 2","HST (815 Hz)","DMRS 1+1",{"$f":"DerivingPerfReq(I12:Z12)","v":-100},{"$f":"IF(G12>-100,G12+0.6,G12)","v":-100},null,null,null,null,null,null,null,null,null,null,null,null,null,null,0,0,{"$error":"#DIV/0!"},{"$error":"#DIV/0!"}]
[null,null,null,"MCS 16",null,null,{"$f":"DerivingPerfReq(I13:Z13)","v":-100},-100,null,null,null,null,null,null,null,null,null,null,null,null,null,null,0,0,{"$error":"#DIV/0!"},{"$error":"#DIV/0!"}]
[null,null,null,"MCS 20",null,null,-100,-100,null,null,null,null,null,null,null,null,null,null,null,null,null,null,0,0,{"$error":"#DIV/0!"},{"$error":"#DIV/0!"}]
[null,null,"15kHz, 12 PRB","MCS 2","TDLA 30-10","DMRS 1+0",-100,-100,null,null,null,null,null,null,null,null,null,null,null,null,null,null,0,0,{"$error":"#DIV/0!"},{"$error":"#DIV/0!"}]
[null,null,null,"MCS 16",null,null,-100,-100,null,null,null,null,null,null,null,null,null,null,null,null,null,null,0,0,{"$error":"#DIV/0!"},{"$error":"#DIV/0!"}]
[null,null,null,"MCS 20",null,null,-100,-100,null,null,null,null,null,null,null,null,null,null,null,null,null,null,0,0,{"$error":"#DIV/0!"},{"$error":"#DIV/0!"}]
[null,null,null,"MCS 2","TDLB 100-400","DMRS 1+0",-100,-100,null,null,null,null,null,null,null,null,null,null,null,null,null,null,0,0,{"$error":"#DIV/0!"},{"$error":"#DIV/0!"}]
[null,null,null,"MCS 16",null,null,-100,-100,null,null,null,null,null,null,null,null,null,null,null,null,null,null,0,0,{"$error":"#DIV/0!"},{"$error":"#DIV/0!"}]
[null,null,null,"MCS 20",null,null,-100,-100,null,null,null,null,null,null,null,null,null,null,null,null,null,null,0,0,{"$error":"#DIV/0!"},{"$error":"#DIV/0!"}]
[null,null,null,"MCS 2",null,"DMRS 1+1",-100,-100,null,null,null,null,null,null,null,null,null,null,null,null,null,null,0,0,{"$error":"#DIV/0!"},{"$error":"#DIV/0!"}]
[null,null,null,"MCS 16",null,null,-100,-100,null,null,null,null,null,null,null,null,null,null,null,null,null,null,0,0,{"$error":"#DIV/0!"},{"$error":"#DIV/0!"}]
[null,null,null,"MCS 20",null,null,-100,-100,null,null,null,null,null,null,null,null,null,null,null,null,null,null,0,0,{"$error":"#DIV/0!"},{"$error":"#DIV/0!"}]
[null,null,null,"MCS 2","HST (815 Hz)","DMRS 1+1",-100,-100,null,null,null,null,null,null,null,null,null,null,null,null,null,null,0,0,{"$error":"#DIV/0!"},{"$error":"#DIV/0!"}]
[null,null,null,"MCS 16",null,null,-100,-100,null,null,null,null,null,null,null,null,null,null,null,null,null,null,{"$f":"MAX(I25,K25,M25,O25,U25,Q25,S25)-MIN(I25,K25,M25,O25,U25,Q25,S25)","v":0},{"$f":"MAX(J25,L25,N25,P25,V25,R25,T25)-MIN(J25,L25,N25,P25,V25,R25,T25)","v":0},{"$error":"#DIV/0!"},{"$error":"#DIV/0!"}]
[null,null,null,"MCS 20",null,null,-100,-100,null,null,null,null,null,null,null,null,null,null,null,null,null,null,0,0,{"$error":"#DIV/0!"},{"$error":"#DIV/0!"}]
["DFT-s-OFDM",null,"15kHz, 12 PRB","MCS 2","TDLA 30-10","DMRS 1+0",-100,-100,null,null,null,null,null,null,null,null,null,null,null,null,null,null,0,0,{"$error":"#DIV/0!"},{"$error":"#DIV/0!"}]
[null,null,null,"MCS 16",null,null,-100,-100,null,null,null,null,null,null,null,null,null,null,null,null,null,null,{"$f":"MAX(I28,K28,M28,O28,U29,Q28,S28)-MIN(I28,K28,M28,O28,U29,Q28,S28)","v":0},0,{"$error":"#DIV/0!"},{"$error":"#DIV/0!"}]
[null,null,null,"MCS 20",null,null,-100,-100,null,null,null,null,null,null,null,null,null,null,null,null,null,null,{"$f":"MAX(I29,K29,M29,O29,U29,Q29,S29)-MIN(I29,K29,M29,O29,U29,Q29,S29)","v":0},0,{"$error":"#DIV/0!"},{"$error":"#DIV/0!"}]
[null,null,null,"MCS 2","TDLB 100-400","DMRS 1+0",-100,-100,null,null,null,null,null,null,null,null,null,null,null,null,null,null,0,0,{"$error":"#DIV/0!"},{"$error":"#DIV/0!"}]
[null,null,null,"MCS 16",null,null,-100,-100,null,null,null,null,null,null,null,null,null,null,null,null,null,null,{"$f":"MAX(I31,K31,M31,O31,U32,Q31,S31)-MIN(I31,K31,M31,O31,U32,Q31,S31)","v":0},0,{"$error":"#DIV/0!"},{"$error":"#DIV/0!"}]
[null,null,null,"MCS 20",null,null,-100,-100,null,null,null,null,null,null,null,null,null,null,null,null,null,null,{"$f":"MAX(I32,K32,M32,O32,U32,Q32,S32)-MIN(I32,K32,M32,O32,U32,Q32,S32)","v":0},0,{"$error":"#DIV/0!"},{"$error":"#DIV/0!"}]
[null,null,null,"MCS 2",null,"DMRS 1+1",-100,-100,null,null,null,null,null,null,null,null,null,null,null,null,null,null,0,0,{"$error":"#DIV/0!"},{"$error":"#DIV/0!"}]
[null,null,null,"MCS 16",null,null,-100,-100,null,null,null,null,null,null,null,null,null,null,null,null,null,null,{"$f":"MAX(I34,K34,M34,O34,U35,Q34,S34)-MIN(I34,K34,M34,O34,U35,Q34,S34)","v":0},0,{"$error":"#DIV/0!"},{"$error":"#DIV/0!"}]
[null,null,null,"MCS 20",null,null,-100,{"$f":"IF(G35>-100,G35+0.6,G35)","v":-100},null,null,null,null,null,null,null,null,null,null,null,null,null,null,{"$f":"MAX(I35,K35,M35,O35,U35,Q35,S35)-MIN(I35,K35,M35,O35,U35,Q35,S35)","v":0},0,{"$error":"#DIV/0!"},{"$error":"#DIV/0!"}]
[null,null,null,"MCS 2","HST (815 Hz)","DMRS 1+1",-100,-100,null,null,null,null,null,null,null,null,null,null,null,null,null,null,0,0,{"$error":"#DIV/0!"},{"$error":"#DIV/0!"}]
[null,null,null,"MCS 16",null,null,-100,-100,null,null,null,null,null,null,null,null,null,null,null,null,null,null,0,0,{"$error":"#DIV/0!"},{"$error":"#DIV/0!"}]
[null,null,null,"MCS 20",null,null,-100,-100,null,null,null,null,null,null,null,null,null,null,null,null,null,null,0,0,{"$error":"#DIV/0!"},{"$error":"#DIV/0!"}]
[null,null,"15kHz, 12 PRB","MCS 2","TDLA 30-10","DMRS 1+0",-100,-100,null,null,null,null,null,null,null,null,null,null,null,null,null,null,0,0,{"$error":"#DIV/0!"},{"$error":"#DIV/0!"}]
[null,null,null,"MCS 16",null,null,-100,-100,null,null,null,null,null,null,null,null,null,null,null,null,null,null,0,0,{"$error":"#DIV/0!"},{"$error":"#DIV/0!"}]
[null,null,null,"MCS 20",null,null,-100,-100,null,null,null,null,null,null,null,null,null,null,null,null,null,null,0,0,{"$error":"#DIV/0!"},{"$error":"#DIV/0!"}]
[null,null,null,"MCS 2","TDLB 100-400","DMRS 1+0",{"$f":"DerivingPerfReq(I42:Z42)","v":-100},{"$f":"IF(G42>-100,G42+0.6,G42)","v":-100},null,null,null,null,null,null,null,null,null,null,null,null,null,null,{"$f":"MAX(I42,K42,M42,O42,U42,Q42,S42)-MIN(I42,K42,M42,O42,U42,Q42,S42)","v":0},{"$f":"MAX(J42,L42,N42,P42,V42,R42,T42)-MIN(J42,L42,N42,P42,V42,R42,T42)","v":0},{"$f":"AVERAGE(I42,K42,M42,O42,U42,Q42,S42)","v":{"$error":"#DIV/0!"}},{"$f":"AVERAGE(J42,L42,N42,P42,V42,R42,T42)","v":{"$error":"#DIV/0!"}}]
[null,null,null,"MCS 16",null,null,-100,-100,null,null,null,null,null,null,null,null,null,null,null,null,null,null,0,0,{"$error":"#DIV/0!"},{"$error":"#DIV/0!"}]
[null,null,null,"MCS 20",null,null,-100,-100,null,null,null,null,null,null,null,null,null,null,null,null,null,null,0,0,{"$error":"#DIV/0!"},{"$error":"#DIV/0!"}]
[null,null,null,"MCS 2",null,"DMRS 1+1",-100,-100,null,null,null,null,null,null,null,null,null,null,null,null,null,null,0,0,{"$error":"#DIV/0!"},{"$error":"#DIV/0!"}]
[null,null,null,"MCS 16",null,null,-100,-100,null,null,null,null,null,null,null,null,null,null,null,null,null,null,0,0,{"$error":"#DIV/0!"},{"$error":"#DIV/0!"}]
[null,null,null,"MCS 20",null,null,-100,-100,null,null,null,null,null,null,null,null,null,null,null,null,null,null,0,0,{"$error":"#DIV/0!"},{"$error":"#DIV/0!"}]
[null,null,null,"MCS 2","HST (815 Hz)","DMRS 1+1",-100,-100,null,null,null,null,null,null,null,null,null,null,null,null,null,null,0,0,{"$error":"#DIV/0!"},{"$error":"#DIV/0!"}]
[null,null,null,"MCS 16",null,null,-100,-100,null,null,null,null,null,null,null,null,null,null,null,null,null,null,0,0,{"$error":"#DIV/0!"},{"$error":"#DIV/0!"}]
[null,null,null,"MCS 20",null,null,-100,-100,null,null,null,null,null,null,null,null,null,null,null,null,null,null,0,0,{"$error":"#DIV/0!"},{"$error":"#DIV/0!"}]

{"sheet":"PUCCH Format 2 1T2R","index":3,"n_rows":4,"n_cols":25,"rows_kept":4,"cut":false,"hidden":false,"merged":[[0,23,0,24],[0,0,1,4],[0,5,1,5],[0,6,1,6],[0,7,0,8],[0,9,0,10],[0,11,0,12],[0,13,0,14],[0,15,0,16],[0,17,0,18],[0,19,0,20],[0,21,0,22]]}
["  FR1 PUCCH Format 2 1T2R",null,null,null,null,"38.104 req","38.141 req","Company A",null,"Company B",null,"Company C",null,"Company D",null,"Company E",null,"Company F",null,"Company G",null,"SPAN",null,"AVERAGE"]
[null,null,null,null,null,null,null,"Ideal","Impairment","Ideal","Impairment","Ideal","Impairment","Ideal","Impairment","Ideal","Impairment","Ideal","Impairment","Ideal","Impairment","Ideal","Impairment","Ideal","Impairment"]
["15 kHz SCS","9 PRB","2 OFDM Symbols","22 bit UCI","TDLC 300-100",{"$f":"DerivingPerfReq(H3:Y3)","v":-100},{"$f":"IF(F3>-100,F3+0.6,F3)","v":-100},null,null,null,null,null,null,null,null,null,null,null,null,null,null,{"$f":"MAX(H3,J3,L3,N3,T3,P3,R3)-MIN(H3,J3,L3,N3,T3,P3,R3)","v":0},{"$f":"MAX(I3,K3,M3,O3,U3,Q3,S3)-MIN(I3,K3,M3,O3,U3,Q3,S3)","v":0},{"$f":"AVERAGE(H3,J3,L3,N3,T3,P3,R3)","v":{"$error":"#DIV/0!"}},{"$f":"AVERAGE(I3,K3,M3,O3,U3,Q3,S3)","v":{"$error":"#DIV/0!"}}]
["15 kHz SCS","4 PRB","1 OFDM Symbol","4 bit UCI","TDLC 300-100",{"$f":"DerivingPerfReq(H4:Y4)","v":-100},{"$f":"IF(F4>-100,F4+0.6,F4)","v":-100},null,null,null,null,null,null,null,null,null,null,null,null,null,null,{"$f":"MAX(H4,J4,L4,N4,T4,P4,R4)-MIN(H4,J4,L4,N4,T4,P4,R4)","v":0},0,{"$f":"AVERAGE(H4,J4,L4,N4,T4,P4,R4)","v":{"$error":"#DIV/0!"}},{"$error":"#DIV/0!"}]